[Event "Titled Tuesday Blitz August 1 Late 2023"]
[White "Vasques, Antonio Pedro Freixial"]
[Black "Gundam, Rohit"]
[WhiteFideId "1908332"]
[BlackFideId "75002809"]
[WhiteElo "2322"]
[BlackElo "2465"]
[Result "1-0"]
[Round "6"]
[TimeControl "180+1"]
[Date "2023.08.01"]
[WhiteClock "0:00:51"]
[BlackClock "0:00:00"]
[Board "106"]

1. d4 {[%clk 0:02:57]}  Nf6 {[%clk 0:03:00]} 2. Bg5 {[%clk 0:02:56]}  e6 {[%clk 0:03:01]} 3. e4 {[%clk 0:02:56]}  h6 {[%clk 0:03:00]} 4. Bxf6 {[%clk 0:02:56]}  Qxf6 {[%clk 0:03:00]} 5. Nf3 {[%clk 0:02:54]}  c5 {[%clk 0:02:56]} 6. e5 {[%clk 0:02:48]}  Qd8 {[%clk 0:02:48]} 7. Bd3 {[%clk 0:02:48]}  Nc6 {[%clk 0:02:45]} 8. O-O {[%clk 0:02:46]}  cxd4 {[%clk 0:02:22]} 9. Nbd2 {[%clk 0:02:43]}  d6 {[%clk 0:02:21]} 10. Nc4 {[%clk 0:02:34]}  dxe5 {[%clk 0:02:17]} 11. Nfxe5 {[%clk 0:02:33]}  Nxe5 {[%clk 0:02:16]} 12. Nxe5 {[%clk 0:02:34]}  a6 {[%clk 0:02:05]} 13. Qf3 {[%clk 0:02:32]}  Qf6 {[%clk 0:02:03]} 14. Qe4 {[%clk 0:02:27]}  Bc5 {[%clk 0:01:36]} 15. f4 {[%clk 0:02:22]}  Qe7 {[%clk 0:00:57]} 16. Rae1 {[%clk 0:01:58]}  Qc7 {[%clk 0:00:48]} 17. a3 {[%clk 0:01:38]}  Bd7 {[%clk 0:00:47]} 18. b4 {[%clk 0:01:36]}  Ba7 {[%clk 0:00:43]} 19. Nxd7 {[%clk 0:01:27]}  Qxd7 {[%clk 0:00:22]} 20. f5 {[%clk 0:01:27]}  O-O-O {[%clk 0:00:21]} 21. fxe6 {[%clk 0:01:26]}  fxe6 {[%clk 0:00:21]} 22. Qxe6 {[%clk 0:01:26]}  Rhe8 {[%clk 0:00:18]} 23. Qxd7+ {[%clk 0:01:22]}  Kxd7 {[%clk 0:00:19]} 24. Rf7+ {[%clk 0:01:22]}  Kc6 {[%clk 0:00:15]} 25. Re4 {[%clk 0:00:56]}  Bb8 {[%clk 0:00:04]} 26. a4 {[%clk 0:00:51]}  Bd6 {[%clk 0:00:03]} 27. b5+ {[%clk 0:00:50]}  axb5 {[%clk 0:00:00]} 28. Bxb5+ {[%clk 0:00:51]} 1-0


[Site "https://www.chess.com"]

[Event "Titled Tuesday Blitz August 1 Late 2023"]
[White "Manon-og, Ramon Jr."]
[Black "Salazar Farias, Luis German"]
[WhiteFideId "5200776"]
[BlackFideId "3902170"]
[WhiteElo "2319"]
[BlackElo "2464"]
[Result "0-1"]
[Round "6"]
[TimeControl "180+1"]
[Date "2023.08.01"]
[WhiteClock "0:02:13"]
[BlackClock "0:00:33"]
[Board "107"]

1. e4 {[%clk 0:02:57]}  c6 {[%clk 0:02:46]} 2. d4 {[%clk 0:02:57]}  d5 {[%clk 0:02:45]} 3. e5 {[%clk 0:02:57]}  c5 {[%clk 0:02:37]} 4. dxc5 {[%clk 0:02:57]}  e6 {[%clk 0:02:36]} 5. a3 {[%clk 0:02:57]}  Bxc5 {[%clk 0:02:32]} 6. Qg4 {[%clk 0:02:57]}  Ne7 {[%clk 0:01:55]} 7. Qxg7 {[%clk 0:02:54]}  Ng6 {[%clk 0:01:38]} 8. b4 {[%clk 0:02:46]}  Bd4 {[%clk 0:01:16]} 9. c3 {[%clk 0:02:46]}  Bxe5 {[%clk 0:01:16]} 10. Qh6 {[%clk 0:02:47]}  Qf6 {[%clk 0:01:02]} 11. Bg5 {[%clk 0:02:37]}  Bxc3+ {[%clk 0:00:59]} 12. Kd1 {[%clk 0:02:26]}  Qd4+ {[%clk 0:00:57]} 13. Kc1 {[%clk 0:02:24]}  Bxa1 {[%clk 0:00:57]} 14. Nd2 {[%clk 0:02:21]}  Bb2+ {[%clk 0:00:47]} 15. Kd1 {[%clk 0:02:21]}  Bxa3 {[%clk 0:00:47]} 16. Nf3 {[%clk 0:02:17]}  Qa1+ {[%clk 0:00:47]} 17. Ke2 {[%clk 0:02:16]}  Bxb4 {[%clk 0:00:45]} 18. h4 {[%clk 0:02:14]}  Bd7 {[%clk 0:00:38]} 19. h5 {[%clk 0:02:14]}  Bb5+ {[%clk 0:00:33]} 20. Ke3 {[%clk 0:02:15]}  Qc3+ {[%clk 0:00:33]} 21. Bd3 {[%clk 0:02:13]}  Qxd3# {[%clk 0:00:33]} 0-1


[Site "https://www.chess.com"]

[Event "Titled Tuesday Blitz August 1 Late 2023"]
[White "Lopez Gracia, Fernando"]
[Black "Gaal, Zsoka"]
[WhiteFideId "2207184"]
[BlackFideId "777765"]
[WhiteElo "2316"]
[BlackElo "2461"]
[Result "1-0"]
[Round "6"]
[TimeControl "180+1"]
[Date "2023.08.01"]
[WhiteClock "0:00:28"]
[BlackClock "0:00:06"]
[Board "108"]

1. e4 {[%clk 0:03:00]}  e5 {[%clk 0:02:55]} 2. Nf3 {[%clk 0:02:59]}  d6 {[%clk 0:02:51]} 3. d4 {[%clk 0:02:57]}  exd4 {[%clk 0:02:52]} 4. Nxd4 {[%clk 0:02:58]}  Nf6 {[%clk 0:02:51]} 5. Nc3 {[%clk 0:02:57]}  g6 {[%clk 0:02:51]} 6. Be2 {[%clk 0:02:49]}  Bg7 {[%clk 0:02:50]} 7. Be3 {[%clk 0:02:49]}  Nc6 {[%clk 0:02:42]} 8. O-O {[%clk 0:02:46]}  O-O {[%clk 0:02:41]} 9. h3 {[%clk 0:02:44]}  Nd7 {[%clk 0:02:32]} 10. f4 {[%clk 0:02:41]}  Nxd4 {[%clk 0:02:24]} 11. Bxd4 {[%clk 0:02:41]}  Nc5 {[%clk 0:02:25]} 12. Bf3 {[%clk 0:02:38]}  Ne6 {[%clk 0:02:19]} 13. Bxg7 {[%clk 0:02:34]}  Nxg7 {[%clk 0:02:06]} 14. Qd2 {[%clk 0:02:26]}  f5 {[%clk 0:01:57]} 15. Rae1 {[%clk 0:02:17]}  c6 {[%clk 0:01:48]} 16. Rd1 {[%clk 0:02:11]}  Ne6 {[%clk 0:01:34]} 17. exf5 {[%clk 0:02:05]}  Rxf5 {[%clk 0:01:31]} 18. Bg4 {[%clk 0:02:02]}  Rf8 {[%clk 0:01:20]} 19. Bxe6+ {[%clk 0:01:47]}  Bxe6 {[%clk 0:01:21]} 20. Qxd6 {[%clk 0:01:48]}  Qxd6 {[%clk 0:01:17]} 21. Rxd6 {[%clk 0:01:46]}  Bc4 {[%clk 0:01:14]} 22. Rf2 {[%clk 0:01:43]}  Rae8 {[%clk 0:01:09]} 23. b3 {[%clk 0:01:32]}  Re3 {[%clk 0:00:59]} 24. Nd1 {[%clk 0:01:16]}  Re1+ {[%clk 0:00:59]} 25. Kh2 {[%clk 0:01:16]}  Bd5 {[%clk 0:01:00]} 26. Nc3 {[%clk 0:01:12]}  Bf7 {[%clk 0:00:40]} 27. Rd7 {[%clk 0:01:08]}  Re3 {[%clk 0:00:36]} 28. Nd1 {[%clk 0:01:01]}  Re1 {[%clk 0:00:36]} 29. Nb2 {[%clk 0:01:00]}  b5 {[%clk 0:00:31]} 30. Nd3 {[%clk 0:00:59]}  Ra1 {[%clk 0:00:19]} 31. Rxa7 {[%clk 0:00:59]}  Rd8 {[%clk 0:00:19]} 32. f5 {[%clk 0:00:45]}  Bxb3 {[%clk 0:00:18]} 33. fxg6 {[%clk 0:00:35]}  hxg6 {[%clk 0:00:17]} 34. Ne5 {[%clk 0:00:31]}  Rxa2 {[%clk 0:00:12]} 35. Rxa2 {[%clk 0:00:29]}  Bxa2 {[%clk 0:00:13]} 36. Nxc6 {[%clk 0:00:28]}  Rc8 {[%clk 0:00:06]} 37. Ne7+ {[%clk 0:00:28]} 1-0


[Site "https://www.chess.com"]

[Event "Titled Tuesday Blitz August 1 Late 2023"]
[White "Rios Escobar, Adan"]
[Black "Ardila, Oscar Humberto"]
[WhiteFideId "3403645"]
[BlackFideId "4404742"]
[WhiteElo "2453"]
[BlackElo "2313"]
[Result "1-0"]
[Round "6"]
[TimeControl "180+1"]
[Date "2023.08.01"]
[WhiteClock "0:00:26"]
[BlackClock "0:00:33"]
[Board "110"]

1. d4 {[%clk 0:03:00]}  Nf6 {[%clk 0:02:57]} 2. g3 {[%clk 0:02:59]}  g6 {[%clk 0:02:57]} 3. Bg2 {[%clk 0:02:59]}  Bg7 {[%clk 0:02:57]} 4. e4 {[%clk 0:02:59]}  d6 {[%clk 0:02:57]} 5. Ne2 {[%clk 0:03:00]}  O-O {[%clk 0:02:58]} 6. O-O {[%clk 0:03:00]}  Nbd7 {[%clk 0:02:58]} 7. Nbc3 {[%clk 0:03:01]}  e5 {[%clk 0:02:59]} 8. h3 {[%clk 0:03:00]}  Re8 {[%clk 0:02:58]} 9. Be3 {[%clk 0:03:00]}  c6 {[%clk 0:02:56]} 10. a4 {[%clk 0:02:59]}  Qc7 {[%clk 0:02:55]} 11. a5 {[%clk 0:02:54]}  Nf8 {[%clk 0:02:51]} 12. g4 {[%clk 0:02:48]}  h5 {[%clk 0:02:50]} 13. g5 {[%clk 0:02:48]}  N6h7 {[%clk 0:02:44]} 14. Qd2 {[%clk 0:02:48]}  Ne6 {[%clk 0:02:43]} 15. d5 {[%clk 0:02:44]}  Nf4 {[%clk 0:02:24]} 16. Nxf4 {[%clk 0:02:40]}  exf4 {[%clk 0:02:24]} 17. Bxf4 {[%clk 0:02:40]}  Be5 {[%clk 0:02:25]} 18. Bxe5 {[%clk 0:02:37]}  Rxe5 {[%clk 0:02:08]} 19. f4 {[%clk 0:02:29]}  Re8 {[%clk 0:02:08]} 20. Rfe1 {[%clk 0:02:13]}  c5 {[%clk 0:01:59]} 21. e5 {[%clk 0:02:03]}  Bf5 {[%clk 0:01:57]} 22. Nb5 {[%clk 0:01:59]}  Qd7 {[%clk 0:01:58]} 23. Nxd6 {[%clk 0:01:59]}  Bxh3 {[%clk 0:01:57]} 24. Nxe8 {[%clk 0:01:49]}  Rxe8 {[%clk 0:01:50]} 25. e6 {[%clk 0:01:44]}  Bxe6 {[%clk 0:01:45]} 26. Qe3 {[%clk 0:01:29]}  Qc7 {[%clk 0:01:24]} 27. dxe6 {[%clk 0:01:23]}  Rxe6 {[%clk 0:01:25]} 28. Qf2 {[%clk 0:01:18]}  Nf8 {[%clk 0:01:21]} 29. Bd5 {[%clk 0:01:09]}  Rd6 {[%clk 0:01:02]} 30. c4 {[%clk 0:01:05]}  b6 {[%clk 0:00:56]} 31. axb6 {[%clk 0:01:02]}  Rxb6 {[%clk 0:00:56]} 32. Re8 {[%clk 0:00:55]}  Kg7 {[%clk 0:00:53]} 33. Rae1 {[%clk 0:00:49]}  Rb3 {[%clk 0:00:37]} 34. R1e7 {[%clk 0:00:38]}  Qa5 {[%clk 0:00:33]} 35. Rxf7+ {[%clk 0:00:35]}  Kh8 {[%clk 0:00:33]} 36. Rexf8# {[%clk 0:00:26]} 1-0


[Site "https://www.chess.com"]

[Event "Titled Tuesday Blitz August 1 Late 2023"]
[White "Lehtosaari, Mauri"]
[Black "Georg, Heinz"]
[WhiteFideId "501999"]
[BlackFideId "4607295"]
[WhiteElo "2448"]
[BlackElo "2305"]
[Result "1-0"]
[Round "6"]
[TimeControl "180+1"]
[Date "2023.08.01"]
[WhiteClock "0:01:58"]
[BlackClock "0:00:55"]
[Board "112"]

1. d4 {[%clk 0:02:55]}  e6 {[%clk 0:02:59]} 2. Nf3 {[%clk 0:02:55]}  f5 {[%clk 0:02:58]} 3. Bf4 {[%clk 0:02:54]}  Nf6 {[%clk 0:02:58]} 4. e3 {[%clk 0:02:55]}  b6 {[%clk 0:02:58]} 5. Be2 {[%clk 0:02:53]}  Bb7 {[%clk 0:02:59]} 6. O-O {[%clk 0:02:53]}  Bd6 {[%clk 0:02:59]} 7. Bxd6 {[%clk 0:02:52]}  cxd6 {[%clk 0:03:00]} 8. Nc3 {[%clk 0:02:52]}  O-O {[%clk 0:02:56]} 9. b3 {[%clk 0:02:50]}  Bxf3 {[%clk 0:02:55]} 10. Bxf3 {[%clk 0:02:50]}  d5 {[%clk 0:02:56]} 11. Ne2 {[%clk 0:02:48]}  Nc6 {[%clk 0:02:55]} 12. c4 {[%clk 0:02:48]}  dxc4 {[%clk 0:02:52]} 13. bxc4 {[%clk 0:02:49]}  g5 {[%clk 0:02:45]} 14. g3 {[%clk 0:02:47]}  g4 {[%clk 0:02:37]} 15. Bg2 {[%clk 0:02:47]}  Rc8 {[%clk 0:02:26]} 16. Rc1 {[%clk 0:02:46]}  d6 {[%clk 0:02:24]} 17. Nf4 {[%clk 0:02:45]}  Qe7 {[%clk 0:02:07]} 18. Nxe6 {[%clk 0:02:37]}  Qxe6 {[%clk 0:02:06]} 19. d5 {[%clk 0:02:37]}  Qe5 {[%clk 0:02:03]} 20. dxc6 {[%clk 0:02:38]}  Ne4 {[%clk 0:02:03]} 21. Qd5+ {[%clk 0:02:35]}  Kh8 {[%clk 0:02:00]} 22. Rfd1 {[%clk 0:02:24]}  Rfe8 {[%clk 0:01:12]} 23. Bxe4 {[%clk 0:02:11]}  Qxe4 {[%clk 0:01:11]} 24. Qxd6 {[%clk 0:02:11]}  Qxc6 {[%clk 0:01:08]} 25. Qd4+ {[%clk 0:02:03]}  Kg8 {[%clk 0:01:06]} 26. Qf4 {[%clk 0:02:02]}  Qe4 {[%clk 0:01:02]} 27. Qg5+ {[%clk 0:01:59]}  Kf8 {[%clk 0:00:59]} 28. Qf6+ {[%clk 0:01:59]}  Kg8 {[%clk 0:00:55]} 29. Rd7 {[%clk 0:01:58]} 1-0


[Site "https://www.chess.com"]

[Event "Titled Tuesday Blitz August 1 Late 2023"]
[White "Kirillov, Dmitry"]
[Black "Pein, Malcolm"]
[WhiteFideId "34180572"]
[BlackFideId "400289"]
[WhiteElo "2435"]
[BlackElo "2286"]
[Result "0-1"]
[Round "6"]
[TimeControl "180+1"]
[Date "2023.08.01"]
[WhiteClock "0:00:00"]
[BlackClock "0:00:25"]
[Board "115"]

1. d4 {[%clk 0:03:00]}  Nf6 {[%clk 0:02:58]} 2. Nf3 {[%clk 0:03:01]}  c5 {[%clk 0:02:57]} 3. e3 {[%clk 0:03:00]}  g6 {[%clk 0:02:54]} 4. Bd3 {[%clk 0:03:00]}  Bg7 {[%clk 0:02:54]} 5. O-O {[%clk 0:03:00]}  O-O {[%clk 0:02:52]} 6. dxc5 {[%clk 0:02:59]}  Qa5 {[%clk 0:02:51]} 7. a3 {[%clk 0:02:59]}  Qxc5 {[%clk 0:02:51]} 8. b4 {[%clk 0:02:59]}  Qc7 {[%clk 0:02:50]} 9. Bb2 {[%clk 0:03:00]}  b6 {[%clk 0:02:50]} 10. c4 {[%clk 0:03:00]}  Bb7 {[%clk 0:02:50]} 11. Nbd2 {[%clk 0:03:00]}  d6 {[%clk 0:02:47]} 12. Qb3 {[%clk 0:03:00]}  Nbd7 {[%clk 0:02:46]} 13. Rac1 {[%clk 0:03:00]}  Rac8 {[%clk 0:02:45]} 14. Rfd1 {[%clk 0:03:00]}  Qb8 {[%clk 0:02:46]} 15. Bf1 {[%clk 0:02:55]}  Qa8 {[%clk 0:02:46]} 16. h3 {[%clk 0:02:52]}  Rc7 {[%clk 0:02:46]} 17. Nd4 {[%clk 0:02:51]}  a6 {[%clk 0:02:45]} 18. Ne2 {[%clk 0:02:07]}  Rfc8 {[%clk 0:02:25]} 19. Nf4 {[%clk 0:01:55]}  d5 {[%clk 0:02:07]} 20. cxd5 {[%clk 0:01:50]}  Nxd5 {[%clk 0:02:06]} 21. Rxc7 {[%clk 0:01:46]}  Rxc7 {[%clk 0:02:03]} 22. Bxg7 {[%clk 0:01:45]}  Nxf4 {[%clk 0:02:00]} 23. exf4 {[%clk 0:00:52]}  Kxg7 {[%clk 0:01:59]} 24. Nc4 {[%clk 0:00:49]}  Bd5 {[%clk 0:01:54]} 25. Qb2+ {[%clk 0:00:47]}  Kg8 {[%clk 0:01:53]} 26. Ne5 {[%clk 0:00:46]}  Nf6 {[%clk 0:01:38]} 27. f5 {[%clk 0:00:36]}  Qc8 {[%clk 0:01:28]} 28. fxg6 {[%clk 0:00:35]}  hxg6 {[%clk 0:01:28]} 29. Qd4 {[%clk 0:00:33]}  Rc1 {[%clk 0:01:23]} 30. Rxc1 {[%clk 0:00:32]}  Qxc1 {[%clk 0:01:22]} 31. Qxb6 {[%clk 0:00:30]}  Qa1 {[%clk 0:01:05]} 32. Qd8+ {[%clk 0:00:28]}  Kg7 {[%clk 0:01:05]} 33. Qxe7 {[%clk 0:00:27]}  Ng8 {[%clk 0:01:01]} 34. Qd6 {[%clk 0:00:20]}  Be6 {[%clk 0:01:01]} 35. Nf3 {[%clk 0:00:18]}  Nf6 {[%clk 0:00:56]} 36. Qd4 {[%clk 0:00:18]}  Qxa3 {[%clk 0:00:54]} 37. Ng5 {[%clk 0:00:16]}  Bd5 {[%clk 0:00:51]} 38. Kh2 {[%clk 0:00:09]}  Qc1 {[%clk 0:00:47]} 39. h4 {[%clk 0:00:09]}  Qxf1 {[%clk 0:00:45]} 40. f3 {[%clk 0:00:08]}  Qc4 {[%clk 0:00:42]} 41. Qf2 {[%clk 0:00:06]}  Qf4+ {[%clk 0:00:39]} 42. g3 {[%clk 0:00:06]}  Ng4+ {[%clk 0:00:35]} 43. Kg2 {[%clk 0:00:04]}  Nxf2 {[%clk 0:00:27]} 44. gxf4 {[%clk 0:00:04]}  Nd3 {[%clk 0:00:27]} 45. Ne4 {[%clk 0:00:00]}  Bxe4 {[%clk 0:00:25]} 0-1


[Site "https://www.chess.com"]

[Event "Titled Tuesday Blitz August 1 Late 2023"]
[White "Davidson, Kevin"]
[Black "Ruge, Edison"]
[WhiteFideId "2056810"]
[BlackFideId "4401000"]
[WhiteElo "2414"]
[BlackElo "2266"]
[Result "1-0"]
[Round "6"]
[TimeControl "180+1"]
[Date "2023.08.01"]
[WhiteClock "0:00:04"]
[BlackClock "0:00:00"]
[Board "118"]

1. e4 {[%clk 0:03:00]}  e5 {[%clk 0:03:00]} 2. Nf3 {[%clk 0:02:58]}  Nc6 {[%clk 0:03:00]} 3. Bb5 {[%clk 0:02:57]}  f5 {[%clk 0:03:01]} 4. Nc3 {[%clk 0:02:56]}  fxe4 {[%clk 0:03:00]} 5. Nxe4 {[%clk 0:02:57]}  Nf6 {[%clk 0:03:00]} 6. Nxf6+ {[%clk 0:02:57]}  Qxf6 {[%clk 0:02:59]} 7. Qe2 {[%clk 0:02:56]}  Be7 {[%clk 0:02:59]} 8. Bxc6 {[%clk 0:02:56]}  dxc6 {[%clk 0:03:00]} 9. Nxe5 {[%clk 0:02:56]}  O-O {[%clk 0:03:00]} 10. O-O {[%clk 0:02:56]}  Bd6 {[%clk 0:03:00]} 11. f4 {[%clk 0:02:55]}  c5 {[%clk 0:02:59]} 12. d3 {[%clk 0:02:54]}  Be6 {[%clk 0:02:59]} 13. Bd2 {[%clk 0:02:54]}  Bd5 {[%clk 0:02:59]} 14. Nd7 {[%clk 0:02:42]}  Qxb2 {[%clk 0:02:58]} 15. Nxf8 {[%clk 0:02:40]}  Rxf8 {[%clk 0:02:58]} 16. c4 {[%clk 0:02:32]}  Bc6 {[%clk 0:02:47]} 17. a4 {[%clk 0:02:00]}  Re8 {[%clk 0:02:44]} 18. Qf2 {[%clk 0:01:58]}  Qc2 {[%clk 0:02:38]} 19. Rfe1 {[%clk 0:01:13]}  Qxd3 {[%clk 0:02:34]} 20. Rxe8+ {[%clk 0:01:10]}  Bxe8 {[%clk 0:02:32]} 21. Qe3 {[%clk 0:01:02]}  Qd4 {[%clk 0:02:23]} 22. Rb1 {[%clk 0:00:37]}  Bc6 {[%clk 0:02:08]} 23. Qxd4 {[%clk 0:00:31]}  cxd4 {[%clk 0:02:07]} 24. a5 {[%clk 0:00:31]}  a6 {[%clk 0:01:59]} 25. Kf2 {[%clk 0:00:30]}  Kf7 {[%clk 0:01:50]} 26. g3 {[%clk 0:00:29]}  Kf6 {[%clk 0:01:48]} 27. Bb4 {[%clk 0:00:28]}  Be4 {[%clk 0:01:39]} 28. Rb2 {[%clk 0:00:09]}  c5 {[%clk 0:01:36]} 29. Bd2 {[%clk 0:00:09]}  Bc6 {[%clk 0:01:32]} 30. Rb1 {[%clk 0:00:07]}  g6 {[%clk 0:01:29]} 31. Re1 {[%clk 0:00:07]}  Bd7 {[%clk 0:01:26]} 32. Kg2 {[%clk 0:00:06]}  Be6 {[%clk 0:01:24]} 33. Rc1 {[%clk 0:00:05]}  Bf5 {[%clk 0:01:19]} 34. Kf3 {[%clk 0:00:05]}  Bd7 {[%clk 0:01:18]} 35. g4 {[%clk 0:00:04]}  Bc6+ {[%clk 0:01:17]} 36. Kf2 {[%clk 0:00:05]}  h5 {[%clk 0:01:17]} 37. h3 {[%clk 0:00:04]}  Bc7 {[%clk 0:01:13]} 38. Kg3 {[%clk 0:00:04]}  hxg4 {[%clk 0:01:11]} 39. hxg4 {[%clk 0:00:04]}  Be4 {[%clk 0:01:10]} 40. Re1 {[%clk 0:00:04]}  Bd3 {[%clk 0:01:07]} 41. Rc1 {[%clk 0:00:02]}  Ke6 {[%clk 0:01:07]} 42. Kf3 {[%clk 0:00:02]}  Kf6 {[%clk 0:01:06]} 43. Kg3 {[%clk 0:00:02]}  Ke6 {[%clk 0:01:06]} 44. Kf3 {[%clk 0:00:03]}  Kf6 {[%clk 0:01:07]} 45. Be1 {[%clk 0:00:02]}  Bd8 {[%clk 0:01:03]} 46. Bh4+ {[%clk 0:00:02]}  Ke6 {[%clk 0:01:01]} 47. Bxd8 {[%clk 0:00:02]}  Kd6 {[%clk 0:01:02]} 48. Bb6 {[%clk 0:00:02]}  Kc6 {[%clk 0:01:02]} 49. g5 {[%clk 0:00:01]}  Bf5 {[%clk 0:01:01]} 50. Kg3 {[%clk 0:00:01]}  Be6 {[%clk 0:01:01]} 51. Kf3 {[%clk 0:00:02]}  Bf5 {[%clk 0:01:00]} 52. Kf2 {[%clk 0:00:02]}  d3 {[%clk 0:00:59]} 53. Ke3 {[%clk 0:00:02]}  Kd6 {[%clk 0:00:58]} 54. Rc3 {[%clk 0:00:01]}  Kc6 {[%clk 0:00:58]} 55. Rxd3 {[%clk 0:00:02]}  Bxd3 {[%clk 0:00:53]} 56. Kxd3 {[%clk 0:00:03]}  Kd6 {[%clk 0:00:53]} 57. Ke4 {[%clk 0:00:03]}  Ke6 {[%clk 0:00:52]} 58. Bxc5 {[%clk 0:00:03]}  Kd7 {[%clk 0:00:53]} 59. Bd4 {[%clk 0:00:03]}  Kc6 {[%clk 0:00:53]} 60. Ke5 {[%clk 0:00:03]}  b5 {[%clk 0:00:52]} 61. axb6 {[%clk 0:00:03]}  a5 {[%clk 0:00:52]} 62. c5 {[%clk 0:00:04]}  a4 {[%clk 0:00:53]} 63. Kf6 {[%clk 0:00:04]}  a3 {[%clk 0:00:53]} 64. Ba1 {[%clk 0:00:04]}  a2 {[%clk 0:00:52]} 65. Kxg6 {[%clk 0:00:04]}  Kxc5 {[%clk 0:00:00]} 66. b7 {[%clk 0:00:04]} 1-0


[Site "https://www.chess.com"]

[Event "Titled Tuesday Blitz August 1 Late 2023"]
[White "Feliz Dotel, Dewar Bienvenido"]
[Black "Rodriguez Fontecha, Marcos"]
[WhiteFideId "6402801"]
[BlackFideId "2256576"]
[WhiteElo "2169"]
[BlackElo "2413"]
[Result "0-1"]
[Round "6"]
[TimeControl "180+1"]
[Date "2023.08.01"]
[WhiteClock "0:00:00"]
[BlackClock "0:00:02"]
[Board "119"]

1. d3 {[%clk 0:02:59]}  e5 {[%clk 0:02:58]} 2. d4 {[%clk 0:02:52]}  exd4 {[%clk 0:02:56]} 3. Qxd4 {[%clk 0:02:52]}  Nc6 {[%clk 0:02:57]} 4. Qd1 {[%clk 0:02:52]}  Bc5 {[%clk 0:02:55]} 5. e3 {[%clk 0:02:52]}  d5 {[%clk 0:02:55]} 6. Nf3 {[%clk 0:02:53]}  Nf6 {[%clk 0:02:55]} 7. Be2 {[%clk 0:02:53]}  O-O {[%clk 0:02:55]} 8. O-O {[%clk 0:02:53]}  Qe7 {[%clk 0:02:55]} 9. a3 {[%clk 0:02:51]}  a5 {[%clk 0:02:53]} 10. b3 {[%clk 0:02:51]}  h6 {[%clk 0:02:52]} 11. Bb2 {[%clk 0:02:51]}  Rd8 {[%clk 0:02:52]} 12. Nc3 {[%clk 0:02:48]}  Bf5 {[%clk 0:02:50]} 13. Nb5 {[%clk 0:02:45]}  Ne4 {[%clk 0:02:37]} 14. Nbd4 {[%clk 0:02:39]}  Nxd4 {[%clk 0:02:37]} 15. Nxd4 {[%clk 0:02:39]}  Bg6 {[%clk 0:02:30]} 16. Qe1 {[%clk 0:02:25]}  Bb6 {[%clk 0:02:25]} 17. Bd3 {[%clk 0:02:13]}  c5 {[%clk 0:02:22]} 18. Nf3 {[%clk 0:02:11]}  Rac8 {[%clk 0:02:18]} 19. Qe2 {[%clk 0:02:09]}  Bh5 {[%clk 0:02:13]} 20. Rfd1 {[%clk 0:02:01]}  Ng5 {[%clk 0:02:08]} 21. Bf5 {[%clk 0:01:17]}  Nxf3+ {[%clk 0:01:47]} 22. gxf3 {[%clk 0:01:16]}  Qg5+ {[%clk 0:01:47]} 23. Bg4 {[%clk 0:01:15]}  f5 {[%clk 0:01:47]} 24. h3 {[%clk 0:00:57]}  fxg4 {[%clk 0:01:36]} 25. hxg4 {[%clk 0:00:56]}  Bf7 {[%clk 0:01:33]} 26. Kg2 {[%clk 0:00:57]}  Re8 {[%clk 0:01:21]} 27. Qb5 {[%clk 0:00:48]}  Bc7 {[%clk 0:01:08]} 28. Qxb7 {[%clk 0:00:40]}  h5 {[%clk 0:01:03]} 29. Rg1 {[%clk 0:00:33]}  hxg4 {[%clk 0:00:42]} 30. Kf1 {[%clk 0:00:33]}  g3 {[%clk 0:00:40]} 31. f4 {[%clk 0:00:33]}  Qf5 {[%clk 0:00:24]} 32. Rxg3 {[%clk 0:00:32]}  g6 {[%clk 0:00:25]} 33. Rd1 {[%clk 0:00:26]}  d4 {[%clk 0:00:23]} 34. Qg2 {[%clk 0:00:23]}  Qh5 {[%clk 0:00:12]} 35. Rf3 {[%clk 0:00:19]}  Bd5 {[%clk 0:00:11]} 36. Ke2 {[%clk 0:00:17]}  Bxf3+ {[%clk 0:00:08]} 37. Qxf3 {[%clk 0:00:18]}  Qxf3+ {[%clk 0:00:08]} 38. Kxf3 {[%clk 0:00:19]}  Rcd8 {[%clk 0:00:08]} 39. e4 {[%clk 0:00:17]}  Kf7 {[%clk 0:00:06]} 40. e5 {[%clk 0:00:17]}  Ke6 {[%clk 0:00:06]} 41. b4 {[%clk 0:00:16]}  axb4 {[%clk 0:00:04]} 42. axb4 {[%clk 0:00:17]}  c4 {[%clk 0:00:05]} 43. Rg1 {[%clk 0:00:16]}  Rg8 {[%clk 0:00:05]} 44. b5 {[%clk 0:00:14]}  d3 {[%clk 0:00:05]} 45. cxd3 {[%clk 0:00:13]}  cxd3 {[%clk 0:00:06]} 46. Rd1 {[%clk 0:00:12]}  Bb6 {[%clk 0:00:06]} 47. Ba3 {[%clk 0:00:11]}  g5 {[%clk 0:00:05]} 48. Bd6 {[%clk 0:00:10]}  gxf4 {[%clk 0:00:05]} 49. Kxf4 {[%clk 0:00:10]}  Kd5 {[%clk 0:00:04]} 50. Rxd3+ {[%clk 0:00:10]}  Kc4 {[%clk 0:00:05]} 51. Rd1 {[%clk 0:00:10]}  Kxb5 {[%clk 0:00:05]} 52. Ke4 {[%clk 0:00:10]}  Kc6 {[%clk 0:00:05]} 53. f4 {[%clk 0:00:10]}  Rg3 {[%clk 0:00:06]} 54. Rc1+ {[%clk 0:00:09]}  Kd7 {[%clk 0:00:06]} 55. Kf5 {[%clk 0:00:08]}  Ra8 {[%clk 0:00:05]} 56. Rd1 {[%clk 0:00:07]}  Kc6 {[%clk 0:00:04]} 57. Rc1+ {[%clk 0:00:06]}  Kd5 {[%clk 0:00:05]} 58. Rd1+ {[%clk 0:00:06]}  Bd4 {[%clk 0:00:05]} 59. e6 {[%clk 0:00:04]}  Rh3 {[%clk 0:00:03]} 60. e7 {[%clk 0:00:02]}  Kxd6 {[%clk 0:00:03]} 61. Rxd4+ {[%clk 0:00:02]}  Kxe7 {[%clk 0:00:04]} 62. Ke4 {[%clk 0:00:03]}  Rh4 {[%clk 0:00:04]} 63. Kf3 {[%clk 0:00:02]}  Rd8 {[%clk 0:00:04]} 64. Re4+ {[%clk 0:00:02]}  Kf6 {[%clk 0:00:04]} 65. Kg3 {[%clk 0:00:03]}  Rh7 {[%clk 0:00:04]} 66. Ra4 {[%clk 0:00:03]}  Rg7+ {[%clk 0:00:05]} 67. Kf3 {[%clk 0:00:03]}  Re7 {[%clk 0:00:05]} 68. Ra6+ {[%clk 0:00:04]}  Re6 {[%clk 0:00:05]} 69. Ra7 {[%clk 0:00:03]}  Rd5 {[%clk 0:00:06]} 70. Ra8 {[%clk 0:00:04]}  Kf5 {[%clk 0:00:06]} 71. Rf8+ {[%clk 0:00:04]}  Rf6 {[%clk 0:00:06]} 72. Rb8 {[%clk 0:00:03]}  Rd3+ {[%clk 0:00:06]} 73. Ke2 {[%clk 0:00:03]}  Ra3 {[%clk 0:00:06]} 74. Rb4 {[%clk 0:00:02]}  Re6+ {[%clk 0:00:05]} 75. Kf2 {[%clk 0:00:03]}  Re4 {[%clk 0:00:05]} 76. Rb5+ {[%clk 0:00:03]}  Kxf4 {[%clk 0:00:06]} 77. Rb8 {[%clk 0:00:04]}  Rea4 {[%clk 0:00:05]} 78. Rf8+ {[%clk 0:00:04]}  Ke4 {[%clk 0:00:06]} 79. Re8+ {[%clk 0:00:04]}  Kd3 {[%clk 0:00:06]} 80. Kf3 {[%clk 0:00:04]}  Kd2+ {[%clk 0:00:05]} 81. Kf2 {[%clk 0:00:04]}  Rf4+ {[%clk 0:00:05]} 82. Kg2 {[%clk 0:00:05]}  Rd4 {[%clk 0:00:06]} 83. Kf2 {[%clk 0:00:04]}  Ra2 {[%clk 0:00:04]} 84. Rc8 {[%clk 0:00:03]}  Ra7 {[%clk 0:00:03]} 85. Rf8 {[%clk 0:00:02]}  Re7 {[%clk 0:00:02]} 86. Rf6 {[%clk 0:00:02]}  Rde4 {[%clk 0:00:02]} 87. Rf8 {[%clk 0:00:00]}  Re2+ {[%clk 0:00:02]} 0-1


[Site "https://www.chess.com"]